[Event "GrandPrix_29.05"]
[Site "Chess.com"]
[Date "2020.05.29"]
[Round "1"]
[White "Ave_Mariia"]
[Black "BairaKovanova"]
[Result "1/2-1/2"]
[WhiteElo "2214"]
[BlackElo "1528"]
[TimeControl "600+2"]
[EndTime "9:23:19 PDT"]
[Termination "Game drawn by agreement"]

1. c4 {[%clk 0:10:01.9]} 1... e5 {[%clk 0:09:59.7]} 2. Nc3 {[%clk 0:10:00.1]}
2... Nf6 {[%clk 0:09:59.9]} 3. g3 {[%clk 0:09:59.8]} 3... d5 {[%clk 0:09:44.8]}
4. cxd5 {[%clk 0:10:00.6]} 4... Nxd5 {[%clk 0:09:45.9]} 5. Bg2 {[%clk
0:10:01.1]} 5... Nb6 {[%clk 0:09:43.4]} 6. Nf3 {[%clk 0:09:59.8]} 6... Nc6
{[%clk 0:09:43.8]} 7. O-O {[%clk 0:09:58.2]} 7... Be7 {[%clk 0:09:42]} 8. a3
{[%clk 0:09:53.5]} 8... Be6 {[%clk 0:09:41.3]} 9. b4 {[%clk 0:09:51.8]} 9... O-O
{[%clk 0:09:29.2]} 10. Bb2 {[%clk 0:09:28.9]} 10... f6 {[%clk 0:08:46.4]} 11. d3
{[%clk 0:08:38.6]} 11... a5 {[%clk 0:08:35.5]} 12. b5 {[%clk 0:08:26.2]} 12...
Nd4 {[%clk 0:08:35.6]} 13. Nxd4 {[%clk 0:08:03.7]} 13... exd4 {[%clk 0:08:34.7]}
14. Ne4 {[%clk 0:08:02.1]} 14... a4 {[%clk 0:07:57]} 15. Rc1 {[%clk 0:07:03.7]}
15... Bd5 {[%clk 0:07:14.6]} 16. Bh3 {[%clk 0:05:25.8]} 16... f5 {[%clk
0:04:27.5]} 17. Nc5 {[%clk 0:05:13.3]} 17... Ra5 {[%clk 0:03:58.2]} 18. Bxd4
{[%clk 0:04:45.8]} 18... Rxb5 {[%clk 0:03:56.5]} 19. Qd2 {[%clk 0:03:27.1]}
19... Bf6 {[%clk 0:02:37.8]} 20. Bxf6 {[%clk 0:03:14.8]} 20... Qxf6 {[%clk
0:02:38]} 21. e4 {[%clk 0:02:52.3]} 21... fxe4 {[%clk 0:01:14.6]} 22. dxe4
{[%clk 0:02:53.3]} 22... Bc6 {[%clk 0:00:49.1]} 23. Qe3 {[%clk 0:01:53.7]} 23...
Re8 {[%clk 0:00:44.1]} 24. Rfd1 {[%clk 0:01:37]} 24... Rb2 {[%clk 0:00:31.5]}
25. Rd4 {[%clk 0:01:05.7]} 25... Nd5 {[%clk 0:00:29.5]} 26. Rxd5 {[%clk
0:00:56.5]} 26... Bxd5 {[%clk 0:00:30]} 27. Nd7 {[%clk 0:00:49.2]} 27... Qf7
{[%clk 0:00:16.7]} 28. Qd4 {[%clk 0:00:38.1]} 28... Be6 {[%clk 0:00:17.8]} 29.
Ne5 {[%clk 0:00:33.5]} 29... Qf6 {[%clk 0:00:18.2]} 30. Bxe6+ {[%clk 0:00:31.5]}
30... Rxe6 {[%clk 0:00:18]} 31. Qxb2 {[%clk 0:00:30.6]} 31... Qxe5 {[%clk
0:00:15.8]} 32. Qxe5 {[%clk 0:00:25.2]} 32... Rxe5 {[%clk 0:00:16.9]} 33. Rxc7
{[%clk 0:00:23.7]} 33... Rxe4 {[%clk 0:00:18]} 34. Rxb7 {[%clk 0:00:20.8]} 34...
Re1+ {[%clk 0:00:18.7]} 35. Kg2 {[%clk 0:00:20.5]} 35... Ra1 {[%clk 0:00:20.2]}
36. Ra7 {[%clk 0:00:17.5]} 36... Rxa3 {[%clk 0:00:20.7]} 37. h4 {[%clk
0:00:18.1]} 37... h6 {[%clk 0:00:21]} 38. Kf1 {[%clk 0:00:15.2]} 38... Ra2
{[%clk 0:00:20.8]} 39. Kg2 {[%clk 0:00:16]} 1/2-1/2

[Event "GrandPrix_29.05"]
[Site "Chess.com"]
[Date "2020.05.29"]
[Round "1"]
[White "metra93"]
[Black "Alex_Molchanov"]
[Result "1-0"]
[WhiteElo "2553"]
[BlackElo "2119"]
[TimeControl "600+2"]
[EndTime "9:23:27 PDT"]
[Termination "metra93 won by checkmate"]

1. e4 {[%clk 0:10:00]} 1... c6 {[%clk 0:09:10.2]} 2. d4 {[%clk 0:09:57.4]} 2...
d5 {[%clk 0:09:10.4]} 3. exd5 {[%clk 0:09:59.3]} 3... cxd5 {[%clk 0:09:11]} 4.
c4 {[%clk 0:10:01.2]} 4... Nf6 {[%clk 0:09:11.3]} 5. Nc3 {[%clk 0:10:01.4]} 5...
g6 {[%clk 0:09:12.1]} 6. Qb3 {[%clk 0:09:47.4]} 6... e6 {[%clk 0:08:37.8]} 7.
Bg5 {[%clk 0:09:27.7]} 7... dxc4 {[%clk 0:08:17.7]} 8. Bxc4 {[%clk 0:09:29.6]}
8... Be7 {[%clk 0:07:31.7]} 9. Nf3 {[%clk 0:08:38.7]} 9... O-O {[%clk
0:07:20.7]} 10. Rd1 {[%clk 0:07:09.9]} 10... Nc6 {[%clk 0:06:56.9]} 11. Qc2
{[%clk 0:07:03.9]} 11... Nb4 {[%clk 0:06:20.4]} 12. Qe2 {[%clk 0:06:50.1]} 12...
Nbd5 {[%clk 0:06:03.4]} 13. O-O {[%clk 0:06:41.2]} 13... Nxc3 {[%clk 0:04:21.4]}
14. bxc3 {[%clk 0:06:39.9]} 14... Nd5 {[%clk 0:03:47]} 15. Bxe7 {[%clk
0:05:47.2]} 15... Nxe7 {[%clk 0:03:48.9]} 16. Ne5 {[%clk 0:05:48.1]} 16... b6
{[%clk 0:03:11.1]} 17. Qf3 {[%clk 0:05:04]} 17... Rb8 {[%clk 0:03:09.4]} 18. Rd3
{[%clk 0:04:09.5]} 18... Bb7 {[%clk 0:03:06.1]} 19. Qg4 {[%clk 0:04:05.9]} 19...
Bd5 {[%clk 0:02:29.2]} 20. Bxd5 {[%clk 0:03:49.1]} 20... Qxd5 {[%clk 0:02:17.8]}
21. c4 {[%clk 0:03:46.7]} 21... Qd6 {[%clk 0:02:10.9]} 22. Rfd1 {[%clk
0:03:29.4]} 22... Nf5 {[%clk 0:02:02.3]} 23. Qe4 {[%clk 0:02:58.3]} 23... h5
{[%clk 0:01:29.4]} 24. d5 {[%clk 0:01:00.5]} 24... exd5 {[%clk 0:01:27.7]} 25.
Rxd5 {[%clk 0:00:59.2]} 25... Qe6 {[%clk 0:01:28.4]} 26. Qf4 {[%clk 0:00:27.3]}
26... Rbe8 {[%clk 0:00:57.1]} 27. h3 {[%clk 0:00:26.4]} 27... Re7 {[%clk
0:00:55.2]} 28. Nd7 {[%clk 0:00:19]} 28... Rc8 {[%clk 0:00:40.3]} 29. g4 {[%clk
0:00:19.2]} 29... hxg4 {[%clk 0:00:33.9]} 30. hxg4 {[%clk 0:00:21.1]} 30... Nh4
{[%clk 0:00:18.8]} 31. Nf6+ {[%clk 0:00:13.5]} 31... Kg7 {[%clk 0:00:19.2]} 32.
g5 {[%clk 0:00:09.1]} 32... Nf5 {[%clk 0:00:13.8]} 33. R5d3 {[%clk 0:00:06.6]}
33... Rxc4 {[%clk 0:00:13.3]} 34. Rh3 {[%clk 0:00:05.2]} 34... Rxf4 {[%clk
0:00:03.6]} 35. Rh7+ {[%clk 0:00:06.1]} 35... Kf8 {[%clk 0:00:04.9]} 36. Rh8+
{[%clk 0:00:07.5]} 36... Kg7 {[%clk 0:00:06.4]} 37. Rg8# {[%clk 0:00:08.9]} 1-0

[Event "GrandPrix_29.05"]
[Site "Chess.com"]
[Date "2020.05.29"]
[Round "1"]
[White "Denis0027"]
[Black "kirillshevchenko"]
[Result "1/2-1/2"]
[WhiteElo "2455"]
[BlackElo "2771"]
[TimeControl "600+2"]
[EndTime "9:23:32 PDT"]
[Termination "Game drawn by agreement"]

1. Nf3 {[%clk 0:10:00.2]} 1... Nf6 {[%clk 0:09:57.7]} 2. g3 {[%clk 0:10:00.1]}
2... g6 {[%clk 0:09:51.3]} 3. Bg2 {[%clk 0:10:00]} 3... Bg7 {[%clk 0:09:52.9]}
4. O-O {[%clk 0:10:00.1]} 4... O-O {[%clk 0:09:54.4]} 5. d3 {[%clk 0:10:01.3]}
5... d5 {[%clk 0:09:38.3]} 6. Nbd2 {[%clk 0:09:57.7]} 6... c5 {[%clk 0:09:37.9]}
7. e4 {[%clk 0:09:57.7]} 7... Nc6 {[%clk 0:09:38.5]} 8. Qe2 {[%clk 0:09:51.9]}
8... e6 {[%clk 0:09:28.7]} 9. c3 {[%clk 0:09:48.3]} 9... b6 {[%clk 0:09:23]} 10.
Rd1 {[%clk 0:09:34.3]} 10... Ba6 {[%clk 0:09:14.7]} 11. exd5 {[%clk 0:09:16.4]}
11... exd5 {[%clk 0:09:13.3]} 12. Nf1 {[%clk 0:09:17.9]} 12... Qd7 {[%clk
0:08:43.4]} 13. Bg5 {[%clk 0:09:08.6]} 13... h6 {[%clk 0:06:55.6]} 14. Bxf6
{[%clk 0:08:59.6]} 14... Bxf6 {[%clk 0:06:57.5]} 15. h4 {[%clk 0:08:50]} 15...
h5 {[%clk 0:06:38.3]} 16. Qd2 {[%clk 0:08:28.7]} 16... Rfe8 {[%clk 0:06:18.6]}
17. Qh6 {[%clk 0:08:15.5]} 17... Bg7 {[%clk 0:06:11]} 18. Qg5 {[%clk 0:08:16.3]}
18... Rad8 {[%clk 0:05:58.7]} 19. d4 {[%clk 0:07:29.7]} 19... Be2 {[%clk
0:05:33.7]} 20. Re1 {[%clk 0:07:01.9]} 20... cxd4 {[%clk 0:05:08.2]} 21. Nxd4
{[%clk 0:06:51.4]} 21... Nxd4 {[%clk 0:03:08.7]} 22. cxd4 {[%clk 0:06:53.3]}
22... Bxf1 {[%clk 0:03:03.8]} 23. Rxf1 {[%clk 0:06:19.4]} 23... Qb5 {[%clk
0:02:24.6]} 24. a4 {[%clk 0:05:49.7]} 24... Qxb2 {[%clk 0:02:19.4]} 25. Bxd5
{[%clk 0:05:38.9]} 25... Qxd4 {[%clk 0:02:19.6]} 26. Rad1 {[%clk 0:05:39.6]}
26... Qf6 {[%clk 0:01:26.8]} 27. Qxf6 {[%clk 0:05:32.7]} 27... Bxf6 {[%clk
0:01:28.7]} 28. Bc6 {[%clk 0:05:32.8]} 28... Re6 {[%clk 0:01:19.9]} 29. Rxd8+
{[%clk 0:05:26]} 29... Bxd8 {[%clk 0:01:21.8]} 30. Bb5 {[%clk 0:05:25.3]} 30...
Be7 {[%clk 0:01:20.6]} 31. Rd1 {[%clk 0:05:17.1]} 31... Bc5 {[%clk 0:01:16.3]}
32. Kg2 {[%clk 0:04:51.4]} 32... Bd6 {[%clk 0:01:15.6]} 33. Rc1 {[%clk
0:04:41.3]} 33... Kg7 {[%clk 0:01:08.9]} 34. Rc6 {[%clk 0:04:35.9]} 34... Rf6
{[%clk 0:00:58.1]} 35. Bc4 {[%clk 0:04:33]} 35... Kf8 {[%clk 0:00:47.3]} 36.
Rc8+ {[%clk 0:04:26.7]} 36... Kg7 {[%clk 0:00:46.4]} 37. Rc6 {[%clk 0:04:27.1]}
37... Kf8 {[%clk 0:00:35.6]} 38. Rc8+ {[%clk 0:04:27.9]} 38... Ke7 {[%clk
0:00:37.2]} 39. Ra8 {[%clk 0:04:29.2]} 39... a5 {[%clk 0:00:38.1]} 40. Ra7+
{[%clk 0:04:19.1]} 40... Ke8 {[%clk 0:00:33.6]} 41. Bb5+ {[%clk 0:04:00.5]}
41... Kf8 {[%clk 0:00:34.2]} 42. Bc4 {[%clk 0:03:59.8]} 42... Be7 {[%clk
0:00:16.3]} 43. Ra8+ {[%clk 0:03:48.3]} 43... Kg7 {[%clk 0:00:17]} 44. Ra7
{[%clk 0:03:49.7]} 44... Bc5 {[%clk 0:00:16.3]} 45. f4 {[%clk 0:03:42.9]} 45...
Kf8 {[%clk 0:00:10.1]} 46. Ra8+ {[%clk 0:03:41]} 46... Ke7 {[%clk 0:00:10.5]}
47. Ra7+ {[%clk 0:03:41.8]} 47... Ke8 {[%clk 0:00:09.9]} 48. Ra8+ {[%clk
0:03:38.8]} 48... Ke7 {[%clk 0:00:10.4]} 49. Ra7+ {[%clk 0:03:39.1]} 49... Kf8
{[%clk 0:00:11.9]} 50. Ra8+ {[%clk 0:03:39.3]} 50... Kg7 {[%clk 0:00:13.4]} 51.
Ra7 {[%clk 0:03:37.1]} 51... Rf5 {[%clk 0:00:07.1]} 52. Rb7 {[%clk 0:03:22.1]}
52... Bd4 {[%clk 0:00:05.9]} 53. Be6 {[%clk 0:03:15.7]} 53... Rf6 {[%clk
0:00:06.4]} 54. Bc4 {[%clk 0:03:14.2]} 54... Be3 {[%clk 0:00:05]} 55. Rd7 {[%clk
0:03:00.4]} 55... Bc1 {[%clk 0:00:04.2]} 56. Rc7 {[%clk 0:02:57.4]} 56... Ba3
{[%clk 0:00:04.9]} 57. Rb7 {[%clk 0:02:57.4]} 57... Bb4 {[%clk 0:00:04.2]} 58.
Bb3 {[%clk 0:02:54.1]} 58... Kf8 {[%clk 0:00:04.3]} 59. Rb8+ {[%clk 0:02:54.5]}
59... Kg7 {[%clk 0:00:05.4]} 60. Rb7 {[%clk 0:02:56.4]} 60... Bc5 {[%clk
0:00:05]} 61. Bc4 {[%clk 0:02:54.3]} 61... Ba3 {[%clk 0:00:04.1]} 62. Bb3 {[%clk
0:02:51.9]} 62... Kg8 {[%clk 0:00:05.1]} 63. Rb8+ {[%clk 0:02:49.7]} 63... Bf8
{[%clk 0:00:06.5]} 64. Rb7 {[%clk 0:02:51.5]} 64... Rf5 {[%clk 0:00:05]} 65.
Rxb6 {[%clk 0:02:49.2]} 65... Kg7 {[%clk 0:00:03.7]} 66. Rb7 {[%clk 0:02:48.7]}
66... Bb4 {[%clk 0:00:04.1]} 67. Kf3 {[%clk 0:02:39.2]} 67... Rf6 {[%clk
0:00:04.9]} 68. Ke4 {[%clk 0:02:37]} 68... Be1 {[%clk 0:00:04.5]} 69. Kf3 {[%clk
0:02:37.2]} 69... Bb4 {[%clk 0:00:05.4]} 1/2-1/2

[Event "GrandPrix_29.05"]
[Site "Chess.com"]
[Date "2020.05.29"]
[Round "1"]
[White "Matibar"]
[Black "0plaksin0"]
[Result "1/2-1/2"]
[WhiteElo "2407"]
[BlackElo "2197"]
[TimeControl "600+2"]
[EndTime "9:23:34 PDT"]
[Termination "Game drawn by repetition"]

1. e4 {[%clk 0:09:57.2]} 1... c5 {[%clk 0:10:00.4]} 2. Nf3 {[%clk 0:09:53.4]}
2... d6 {[%clk 0:10:01.6]} 3. Bb5+ {[%clk 0:09:36.8]} 3... Bd7 {[%clk
0:09:58.8]} 4. a4 {[%clk 0:09:33.7]} 4... a6 {[%clk 0:08:24.2]} 5. Bxd7+ {[%clk
0:09:27.3]} 5... Qxd7 {[%clk 0:08:26.1]} 6. O-O {[%clk 0:09:11.3]} 6... Nc6
{[%clk 0:08:25.9]} 7. b3 {[%clk 0:09:03.2]} 7... g6 {[%clk 0:07:39.5]} 8. Bb2
{[%clk 0:08:57]} 8... e5 {[%clk 0:07:40.6]} 9. Na3 {[%clk 0:08:52.7]} 9... Rb8
{[%clk 0:06:59.3]} 10. Nc4 {[%clk 0:07:39.9]} 10... b5 {[%clk 0:06:57.6]} 11.
axb5 {[%clk 0:07:41.8]} 11... axb5 {[%clk 0:06:59.4]} 12. Ne3 {[%clk 0:07:43.5]}
12... Nge7 {[%clk 0:06:47.5]} 13. c3 {[%clk 0:07:06.2]} 13... b4 {[%clk
0:05:46.5]} 14. c4 {[%clk 0:06:04.9]} 14... Bg7 {[%clk 0:05:36.7]} 15. Ra6
{[%clk 0:05:18]} 15... O-O {[%clk 0:05:23]} 16. Qe2 {[%clk 0:05:08.7]} 16... Ra8
{[%clk 0:05:12.2]} 17. Rfa1 {[%clk 0:05:09.1]} 17... Qb7 {[%clk 0:05:11.6]} 18.
Rxa8 {[%clk 0:04:31.6]} 18... Rxa8 {[%clk 0:05:13.5]} 19. Qd1 {[%clk 0:04:29.1]}
19... Ra7 {[%clk 0:03:36.2]} 20. d3 {[%clk 0:04:21.6]} 20... Qa8 {[%clk
0:03:32]} 21. Rxa7 {[%clk 0:03:41.1]} 21... Qxa7 {[%clk 0:03:33.9]} 22. Qb1
{[%clk 0:03:42.2]} 22... f6 {[%clk 0:02:54.5]} 23. Kf1 {[%clk 0:03:40.4]} 23...
Kf7 {[%clk 0:02:54.1]} 24. Ke2 {[%clk 0:03:41.4]} 24... h5 {[%clk 0:02:43.8]}
25. Kd1 {[%clk 0:03:28.7]} 25... Bh6 {[%clk 0:02:25.5]} 26. Nd5 {[%clk
0:03:23.9]} 26... Nxd5 {[%clk 0:02:01.7]} 27. exd5 {[%clk 0:03:23.1]} 27... Nd4
{[%clk 0:01:39.7]} 28. Bxd4 {[%clk 0:02:59.6]} 28... exd4 {[%clk 0:01:33.3]} 29.
Ke2 {[%clk 0:02:49]} 29... Qa3 {[%clk 0:01:17.2]} 30. Kf1 {[%clk 0:02:49.6]}
30... Qc1+ {[%clk 0:01:02.3]} 31. Qxc1 {[%clk 0:02:50]} 31... Bxc1 {[%clk
0:01:04.2]} 32. h3 {[%clk 0:02:50.3]} 32... Bh6 {[%clk 0:01:01.4]} 33. g4 {[%clk
0:02:50.8]} 33... hxg4 {[%clk 0:00:59.6]} 34. hxg4 {[%clk 0:02:51.8]} 34... Bf4
{[%clk 0:01:01]} 35. Kg2 {[%clk 0:02:51.1]} 35... f5 {[%clk 0:00:31.6]} 36. gxf5
{[%clk 0:02:49.4]} 36... gxf5 {[%clk 0:00:32.7]} 37. Nh4 {[%clk 0:02:51]} 37...
Kf6 {[%clk 0:00:33.8]} 38. Kf3 {[%clk 0:02:52.7]} 38... Bh6 {[%clk 0:00:28.3]}
39. Kg3 {[%clk 0:02:51.6]} 39... Bg5 {[%clk 0:00:20.4]} 40. Nf3 {[%clk
0:02:47.2]} 40... Bh6 {[%clk 0:00:19.7]} 41. Ng1 {[%clk 0:02:45.7]} 41... Bg5
{[%clk 0:00:18.4]} 42. Ne2 {[%clk 0:02:26.5]} 42... Bd2 {[%clk 0:00:02.9]} 43.
Kf3 {[%clk 0:02:07.8]} 43... Bh6 {[%clk 0:00:03.4]} 44. Kg2 {[%clk 0:02:07.3]}
44... Ke5 {[%clk 0:00:04]} 45. Kg3 {[%clk 0:02:07.8]} 45... Kf6 {[%clk
0:00:03.6]} 46. Ng1 {[%clk 0:01:56.9]} 46... Bg5 {[%clk 0:00:04.6]} 47. Nh3
{[%clk 0:01:57.8]} 47... Bh6 {[%clk 0:00:06.2]} 48. Ng1 {[%clk 0:00:55.3]}
1/2-1/2

[Event "GrandPrix_29.05"]
[Site "Chess.com"]
[Date "2020.05.29"]
[Round "1"]
[White "WoodlandMagic"]
[Black "grzechu96"]
[Result "0-1"]
[WhiteElo "2127"]
[BlackElo "2546"]
[TimeControl "600+2"]
[EndTime "9:23:35 PDT"]
[Termination "grzechu96 won on time"]

1. d4 {[%clk 0:09:49.7]} 1... d5 {[%clk 0:09:53.1]} 2. c4 {[%clk 0:09:39.6]}
2... c6 {[%clk 0:09:53.7]} 3. Nf3 {[%clk 0:09:38.9]} 3... Nf6 {[%clk 0:09:54.7]}
4. Qc2 {[%clk 0:09:32.3]} 4... dxc4 {[%clk 0:09:54.5]} 5. Qxc4 {[%clk
0:09:32.2]} 5... Bf5 {[%clk 0:09:42.6]} 6. g3 {[%clk 0:09:17.6]} 6... e6 {[%clk
0:09:43.5]} 7. Bg2 {[%clk 0:09:18.1]} 7... Be7 {[%clk 0:09:42.3]} 8. O-O {[%clk
0:09:17.4]} 8... O-O {[%clk 0:09:43.5]} 9. e3 {[%clk 0:09:18.2]} 9... Nbd7
{[%clk 0:09:34.5]} 10. Qe2 {[%clk 0:09:14.7]} 10... Bg6 {[%clk 0:09:35.3]} 11.
Nc3 {[%clk 0:09:00.9]} 11... b5 {[%clk 0:09:36.3]} 12. Rd1 {[%clk 0:08:41.4]}
12... Rc8 {[%clk 0:09:35.5]} 13. a3 {[%clk 0:07:34.1]} 13... a5 {[%clk
0:08:52.1]} 14. b3 {[%clk 0:07:00.2]} 14... Qb6 {[%clk 0:06:01.6]} 15. Bb2
{[%clk 0:06:48]} 15... Rfd8 {[%clk 0:04:17.6]} 16. Rac1 {[%clk 0:06:21]} 16...
Nd5 {[%clk 0:03:30.8]} 17. Nxd5 {[%clk 0:03:44.5]} 17... cxd5 {[%clk 0:03:32.7]}
18. Bf1 {[%clk 0:03:42.3]} 18... b4 {[%clk 0:03:33.9]} 19. a4 {[%clk 0:03:08.9]}
19... Qb7 {[%clk 0:03:27.8]} 20. Ne5 {[%clk 0:02:01.6]} 20... Nxe5 {[%clk
0:01:46.3]} 21. dxe5 {[%clk 0:02:01.6]} 21... h6 {[%clk 0:01:22.6]} 22. Bd4
{[%clk 0:01:16.2]} 22... Rc7 {[%clk 0:00:43.8]} 23. Qa6 {[%clk 0:00:54.8]} 23...
Qxa6 {[%clk 0:00:43.8]} 24. Bxa6 {[%clk 0:00:54.6]} 24... Rc2 {[%clk 0:00:44.3]}
25. Kf1 {[%clk 0:00:16.6]} 25... Ra8 {[%clk 0:00:42.6]} 26. Bb7 {[%clk
0:00:11.6]} 26... Rb8 {[%clk 0:00:43.3]} 27. Ba6 {[%clk 0:00:12.6]} 27... Bd8
{[%clk 0:00:36.4]} 28. h3 {[%clk 0:00:03.5]} 28... Bb6 {[%clk 0:00:37.3]} 29.
Bxb6 {[%clk 0:00:03.6]} 29... Rxb6 {[%clk 0:00:39.2]} 30. Bb5 {[%clk 0:00:04.4]}
30... Rb7 {[%clk 0:00:35.4]} 31. Ke1 {[%clk 0:00:04.8]} 31... Rbc7 {[%clk
0:00:36.4]} 32. Rxc2 {[%clk 0:00:06]} 32... Rxc2 {[%clk 0:00:24.6]} 33. Bd3
{[%clk 0:00:06.4]} 33... Bxd3 {[%clk 0:00:19.5]} 34. Rxd3 {[%clk 0:00:06.7]}
34... Rb2 {[%clk 0:00:21.1]} 35. Kf1 {[%clk 0:00:05.8]} 35... Kf8 {[%clk
0:00:21.6]} 36. Kg2 {[%clk 0:00:06]} 36... Ke7 {[%clk 0:00:23.1]} 37. Kf3 {[%clk
0:00:05.5]} 37... f6 {[%clk 0:00:24.2]} 38. exf6+ {[%clk 0:00:04.9]} 38... gxf6
{[%clk 0:00:25.7]} 39. e4 {[%clk 0:00:02]} 39... dxe4+ {[%clk 0:00:24.5]} 40.
Kxe4 {[%clk 0:00:03]} 40... Rxf2 {[%clk 0:00:25.9]} 0-1

[Event "GrandPrix_29.05"]
[Site "Chess.com"]
[Date "2020.05.29"]
[Round "1"]
[White "Murad_Ibrahimli"]
[Black "Carpe7Diem"]
[Result "1-0"]
[WhiteElo "2630"]
[BlackElo "2178"]
[TimeControl "600+2"]
[EndTime "9:23:38 PDT"]
[Termination "Murad_Ibrahimli won by resignation"]

1. d4 {[%clk 0:10:01.9]} 1... d5 {[%clk 0:10:00.9]} 2. c4 {[%clk 0:10:02.1]}
2... c6 {[%clk 0:10:01.3]} 3. Nf3 {[%clk 0:10:02.6]} 3... Nf6 {[%clk 0:09:58.7]}
4. e3 {[%clk 0:10:03.1]} 4... Bg4 {[%clk 0:09:24.3]} 5. Nc3 {[%clk 0:10:02.4]}
5... e6 {[%clk 0:09:21.1]} 6. h3 {[%clk 0:09:58.4]} 6... Bh5 {[%clk 0:09:05.2]}
7. g4 {[%clk 0:09:55.7]} 7... Bg6 {[%clk 0:09:05.8]} 8. Ne5 {[%clk 0:09:57]}
8... Nbd7 {[%clk 0:08:59]} 9. Nxg6 {[%clk 0:09:56.7]} 9... hxg6 {[%clk
0:08:58.8]} 10. cxd5 {[%clk 0:09:35.8]} 10... exd5 {[%clk 0:08:50.7]} 11. Bg2
{[%clk 0:09:35.6]} 11... Bd6 {[%clk 0:08:27.3]} 12. Qc2 {[%clk 0:09:33]} 12...
Qc7 {[%clk 0:07:49]} 13. Bd2 {[%clk 0:09:30]} 13... Nb6 {[%clk 0:06:56.1]} 14.
b3 {[%clk 0:09:20.8]} 14... Nbd7 {[%clk 0:06:40.5]} 15. O-O-O {[%clk 0:08:55.1]}
15... O-O-O {[%clk 0:06:32.1]} 16. Kb1 {[%clk 0:08:54.9]} 16... Kb8 {[%clk
0:06:32.8]} 17. Bc1 {[%clk 0:07:55.2]} 17... Rde8 {[%clk 0:06:19.9]} 18. Bb2
{[%clk 0:07:51.7]} 18... g5 {[%clk 0:05:53.4]} 19. Rc1 {[%clk 0:07:39.3]} 19...
Qa5 {[%clk 0:05:25.1]} 20. Qf5 {[%clk 0:06:30]} 20... Be7 {[%clk 0:03:19.5]} 21.
Qxg5 {[%clk 0:04:36.1]} 21... Ne4 {[%clk 0:02:45.3]} 22. Qf4+ {[%clk 0:04:30.3]}
22... Bd6 {[%clk 0:02:35]} 23. Qxf7 {[%clk 0:04:28.1]} 23... Re7 {[%clk
0:02:28.7]} 24. Qg6 {[%clk 0:03:09.1]} 24... Rh6 {[%clk 0:02:06.4]} 25. Bxe4
{[%clk 0:03:04]} 25... Rxg6 {[%clk 0:01:42.4]} 26. Bxg6 {[%clk 0:03:02.8]} 26...
Nf6 {[%clk 0:01:37.1]} 27. g5 {[%clk 0:02:32.1]} 27... Ne4 {[%clk 0:01:26.4]}
28. Nxe4 {[%clk 0:02:31]} 28... dxe4 {[%clk 0:01:27.7]} 29. h4 {[%clk
0:02:31.8]} 29... Qd2 {[%clk 0:00:56.6]} 30. Rc2 {[%clk 0:01:27.9]} 30... Qa5
{[%clk 0:00:49.5]} 31. Rg1 {[%clk 0:01:03.7]} 31... Re6 {[%clk 0:00:39.8]} 32.
Bf7 {[%clk 0:00:56.7]} 32... Re7 {[%clk 0:00:38.2]} 33. Bg6 {[%clk 0:00:55.5]}
33... Re6 {[%clk 0:00:38.4]} 34. Bh5 {[%clk 0:00:38.7]} 34... g6 {[%clk
0:00:35]} 35. Bg4 {[%clk 0:00:38.3]} 35... Re7 {[%clk 0:00:36.6]} 36. Bc1 {[%clk
0:00:24.4]} 36... Rh7 {[%clk 0:00:35]} 37. Rh1 {[%clk 0:00:21.9]} 37... Be7
{[%clk 0:00:32.9]} 38. Bd2 {[%clk 0:00:20.8]} 38... Qd5 {[%clk 0:00:33.4]} 39.
Rh3 {[%clk 0:00:20.4]} 39... Qf7 {[%clk 0:00:27.5]} 40. Be1 {[%clk 0:00:20.1]}
40... Qd5 {[%clk 0:00:28.6]} 41. f4 {[%clk 0:00:20]} 41... exf3 {[%clk 0:00:28]}
42. Rxf3 {[%clk 0:00:21.2]} 42... Rxh4 {[%clk 0:00:26.7]} 43. Bxh4 {[%clk
0:00:20.9]} 43... Bxg5 {[%clk 0:00:27.6]} 44. Bg3+ {[%clk 0:00:21.7]} 1-0

[Event "GrandPrix_29.05"]
[Site "Chess.com"]
[Date "2020.05.29"]
[Round "1"]
[White "Hero_in_my_life"]
[Black "Zubrrr"]
[Result "0-1"]
[WhiteElo "2183"]
[BlackElo "2639"]
[TimeControl "600+2"]
[EndTime "9:23:42 PDT"]
[Termination "Zubrrr won by resignation"]

1. e4 {[%clk 0:10:00.3]} 1... c5 {[%clk 0:09:58.3]} 2. Nf3 {[%clk 0:10:00.7]}
2... d6 {[%clk 0:09:59.4]} 3. d4 {[%clk 0:10:00.3]} 3... cxd4 {[%clk 0:10:00.6]}
4. Qxd4 {[%clk 0:10:00.9]} 4... a6 {[%clk 0:09:47.4]} 5. c4 {[%clk 0:09:50.9]}
5... Nc6 {[%clk 0:09:47.9]} 6. Qd2 {[%clk 0:09:51]} 6... g6 {[%clk 0:08:48.2]}
7. b3 {[%clk 0:08:48.8]} 7... Bh6 {[%clk 0:07:27.3]} 8. Qc3 {[%clk 0:08:14]}
8... Qa5 {[%clk 0:07:26]} 9. Qxa5 {[%clk 0:07:54.1]} 9... Nxa5 {[%clk
0:07:26.2]} 10. Nc3 {[%clk 0:07:55.4]} 10... Bxc1 {[%clk 0:07:03.7]} 11. Rxc1
{[%clk 0:07:55.6]} 11... Nf6 {[%clk 0:07:05.1]} 12. e5 {[%clk 0:07:38.8]} 12...
dxe5 {[%clk 0:07:04.1]} 13. Nxe5 {[%clk 0:07:40.7]} 13... Bd7 {[%clk 0:05:04.9]}
14. Be2 {[%clk 0:07:19.9]} 14... Nc6 {[%clk 0:04:51.6]} 15. f4 {[%clk
0:06:06.2]} 15... e6 {[%clk 0:02:57.1]} 16. Bf3 {[%clk 0:05:53]} 16... Rc8
{[%clk 0:01:08.9]} 17. Nxd7 {[%clk 0:05:17.4]} 17... Kxd7 {[%clk 0:00:59.9]} 18.
Kf2 {[%clk 0:04:33.9]} 18... Rhd8 {[%clk 0:00:59.6]} 19. Rhd1+ {[%clk
0:04:25.1]} 19... Kc7 {[%clk 0:00:42]} 20. g4 {[%clk 0:04:05.8]} 20... Kb6
{[%clk 0:00:06.7]} 21. g5 {[%clk 0:03:48]} 21... Ne8 {[%clk 0:00:06]} 22. Bxc6
{[%clk 0:03:28.2]} 22... Kxc6 {[%clk 0:00:06.2]} 23. Ne4 {[%clk 0:03:24.4]}
23... Kc7 {[%clk 0:00:06.8]} 24. c5 {[%clk 0:03:18.4]} 24... Kc6 {[%clk
0:00:06.2]} 25. h4 {[%clk 0:02:47.4]} 25... Rd5 {[%clk 0:00:07.1]} 26. Rxd5
{[%clk 0:02:37.1]} 26... exd5 {[%clk 0:00:08.3]} 27. Nc3 {[%clk 0:02:33.4]}
27... Nc7 {[%clk 0:00:08.4]} 28. b4 {[%clk 0:01:43.5]} 28... Re8 {[%clk
0:00:08.9]} 29. a4 {[%clk 0:01:39.1]} 29... d4 {[%clk 0:00:07.5]} 30. Ne2 {[%clk
0:01:23.2]} 30... Ne6 {[%clk 0:00:06.9]} 31. Rd1 {[%clk 0:00:43.1]} 31... Kd5
{[%clk 0:00:07.2]} 32. Kf3 {[%clk 0:00:42.4]} 32... Kc4 {[%clk 0:00:07.1]} 33.
Rb1 {[%clk 0:00:16.9]} 33... d3 {[%clk 0:00:07.9]} 34. Ng3 {[%clk 0:00:16.9]}
34... Nd4+ {[%clk 0:00:09]} 35. Kf2 {[%clk 0:00:16.8]} 35... d2 {[%clk
0:00:10.3]} 36. Rd1 {[%clk 0:00:13.3]} 36... Kc3 {[%clk 0:00:09.5]} 37. Nf1
{[%clk 0:00:07.2]} 37... Re2+ {[%clk 0:00:10.3]} 38. Kg3 {[%clk 0:00:07.6]}
38... Kc2 {[%clk 0:00:10.4]} 0-1